lending/lending_fUSD_20250218
["ID","MTS","AMOUNT","RATE_DAILY","PERIOD"]
[353464282,1739857832617,-150.0,0.00013054,2]
[353464283,1739857832626,-150.0,0.00013098,2]
[353464284,1739857832636,-150.0,0.00013112,2]
[353464286,1739857832645,-150.0,0.00013142,2]
[353464288,1739857832654,-150.0,0.00013174,2]
[353464290,1739857832663,-150.0,0.00013186,2]
[353464292,1739857832672,-815.87862456,0.00013228,2]
[353464294,1739857832681,-150.0,0.0001323,2]
[353464296,1739857832691,-150.0,0.00013236,2]
[353464298,1739857832699,-815.87862455,0.00013244,2]
[353464300,1739857832710,-815.87862455,0.0001326,2]
[353464302,1739857832719,-150.0,0.00013274,2]
[353464304,1739857832728,-815.87862455,0.00013275,2]
[353464306,1739857832737,-815.87862455,0.00013291,2]
[353464308,1739857832747,-150.0,0.00013298,2]
[353464310,1739857832756,-815.87862455,0.00013307,2]
[353464312,1739857832765,-2119.70087492,0.00013307,2]
[353464314,1739857832774,-150.0,0.00013318,2]
[353464316,1739857832783,-468.645,0.00013328,2]
[353464318,1739857832793,-2026.0,0.00013328,2]
[353464320,1739857832802,-539.0,0.00013328,2]
[353464322,1739857832811,-150.0,0.00013328,2]
[353464324,1739857832820,-150.0,0.00013328,2]
[353464326,1739857832829,-3917.0,0.00013328,2]
[353464328,1739857832839,-279.995,0.00013328,2]
[353464330,1739857832848,-1110.0,0.00013328,2]
[353464332,1739857832857,-250.0,0.00013328,2]
[353464334,1739857832866,-150.0,0.00013361,2]
[353464336,1739857832875,-150.0,0.00013363,2]
[353464338,1739857832885,-500.0,0.00013399,2]
[353464340,1739857832894,-589.71939732,0.00013399,2]
[353464342,1739857832904,-410337.01224722,0.000134,3]
[353464344,1739857832913,-189.33763446,0.000134,3]
[353464346,1739857832922,-200.0,0.000134,2]
[353464348,1739857832931,-701247.59223942,0.000134,5]
[353464350,1739857832943,-506.74735072,0.000134,5]
[353464353,1739857832956,-2595.3150386,0.000134,5]
[353464355,1739857832966,-1209.496,0.000134,5]
[353464357,1739857832977,-1956.94,0.000134,5]
[353464359,1739857832988,-652.07299097,0.000134,5]
[353464361,1739857832999,-9601.46817506,0.000134,5]
[353464364,1739857833011,-1372.6227422,0.000134,5]
[353464366,1739857833022,-72605.14319769,0.000134,5]
[353464368,1739857833032,-119656.12010717,0.000134,5]
[353464370,1739857833043,-977948.60986056,0.000134,5]
[353464372,1739857833054,-7858.54724254,0.000134,5]
[353464374,1739857833065,-973.30208184,0.000134,5]
[353464444,1739857833823,-444.97059493,0.000134,5]
[353464446,1739857833834,-5186.06402337,0.000134,5]
[353464448,1739857833845,-317.2,0.000134,5]
[353464450,1739857833857,-18040.98065267,0.000134,5]
[353464452,1739857833867,-1643.91621459,0.000134,5]
[353464455,1739857833878,-472.12295122,0.000134,5]
[353464457,1739857833889,-2911.52205608,0.000134,5]
[353464460,1739857833907,-990.42750928,0.000134,5]
[353464462,1739857833918,-324.92886602,0.000134,5]
[353464464,1739857833929,-263237.8160813,0.000134,5]
[353464466,1739857833941,-424524.29297187,0.000134,5]
[353464468,1739857833953,-846.06627978,0.000134,5]
[353464470,1739857833965,-1677.34175643,0.000134,5]
[353464473,1739857833977,-31763.61636781,0.000134,5]
[353464475,1739857833988,-14598.55572139,0.000134,5]
[353464477,1739857834000,-520.41993916,0.000134,5]
[353464479,1739857834012,-350.83174355,0.000134,5]
[353464483,1739857834043,-646.9888024,0.000134,5]
[353464509,1739857838082,-1032.07453308,0.000134,2]
[353464511,1739857838092,-12554.72532862,0.000134,3]
[353464513,1739857838103,-6596.03655,0.000134,3]
[353464514,1739857838115,-148396.00174663,0.000134,3]
[353464515,1739857838126,-3511.95,0.000134,3]
[353464516,1739857838138,-1020.58573479,0.000134,3]
[353464517,1739857838149,-475.78865801,0.000134,3]
[353464518,1739857838159,-821.36527331,0.000134,3]
[353464519,1739857838184,-31792.05283225,0.000134,3]
[353464520,1739857838194,-205557.45093202,0.000134,5]
[353464521,1739857838205,-2948.18605335,0.000134,5]
[353464522,1739857838220,-1574.59846429,0.000134,5]
[353464523,1739857838244,-488.45942115,0.000134,5]
[353464524,1739857838255,-670.435461,0.000134,5]
[353464525,1739857838266,-437.22126349,0.000134,5]
[353464526,1739857838278,-496.99999,0.000134,5]
[353464527,1739857838290,-286.49996773,0.000134,5]
[353464528,1739857838311,-459.99985624,0.000134,5]
[353464529,1739857838322,-1016.2321986,0.000134,5]
[353464530,1739857838334,-421.69991213,0.000134,5]
[353464532,1739857838344,-1011.86821652,0.000134,5]
[353464534,1739857838355,-348.23005832,0.000134,5]
[353464536,1739857838366,-280970.9329141,0.000134,5]
[353464538,1739857838383,-3593.88520939,0.000134,5]
[353464541,1739857838394,-2326.68890568,0.000134,5]
[353464707,1739857840201,-158.999,0.00013328,2]
[353464709,1739857840213,-132060.51064358,0.000134,5]
[353464716,1739857840274,-566.84138598,0.000134,5]
[353464723,1739857840336,-45095.41228578,0.000134,5]
[353464733,1739857840431,-5097.67970896,0.000134,5]
[353464736,1739857840443,-5668.01,0.000134,5]
[353464756,1739857840631,-32230.89119513,0.000134,5]
[353464758,1739857840642,-30789.35792431,0.000134,5]
[353464760,1739857840654,-247443.95175696,0.000134,5]
[353464762,1739857840665,-3814.94005078,0.000134,5]
[353464767,1739857840697,-6400.80293767,0.000134,5]
[353464769,1739857840708,-2497.64334823,0.000134,5]
[353464771,1739857840720,-3209658.57934566,0.000134,5]
[353465025,1739857843152,-352.88619973,0.00012877,2]
[353465033,1739857843215,-86.25380027,0.00012877,2]
[353465035,1739857843225,-1897.84509495,0.000134,5]
[353465041,1739857843276,-8061.9412682,0.000134,5]
[353465049,1739857843349,-3176.60434443,0.000134,5]
[353465051,1739857843361,-2902.22380354,0.000134,5]
[353465057,1739857843411,-2700.0,0.000134,5]
[353465185,1739857846036,-520100.51262864,0.000134,5]
[353465186,1739857846049,-654.15000608,0.000134,5]
[353465187,1739857846097,-5386.69938801,0.000134,5]
[353465188,1739857846109,-3288.60785724,0.000134,5]
[353465189,1739857846120,-1039.449305,0.000134,5]
[353465190,1739857846219,-934.40077117,0.000134,5]
[353465191,1739857846230,-6983.2881696,0.000134,5]
[353465192,1739857846242,-365.40274329,0.000134,5]
[353465193,1739857846266,-69121.25727671,0.000134,5]
[353465203,1739858297690,-980.0,8.973e-05,2]
[353465301,1739859032313,-300.0,8.835e-05,2]
[353465302,1739859032324,-7108.5628,8.836e-05,2]
[353465303,1739859032334,-500.0,8.836e-05,2]
[353465304,1739859032343,-500.0,8.836e-05,2]
[353465305,1739859032352,-500.0,8.836e-05,2]
[353465306,1739859032361,-174.39286929,8.836e-05,2]
[353465307,1739859032371,-4848.43995697,8.836e-05,2]
[353465308,1739859032380,-200.0,8.904e-05,2]
[353465309,1739859032391,-638.6527,8.973e-05,2]
[353465310,1739859032401,-420.0,9.718e-05,2]
[353465311,1739859032410,-200.0,9.719e-05,2]
[353465312,1739859032420,-200.0,9.719e-05,2]
[353465313,1739859032430,-150.0,9.87e-05,2]
[353465314,1739859032442,-550.0,0.0001,2]
[353465315,1739859032452,-151.45,0.00010137,2]
[353465316,1739859032462,-3214.42400637,0.00010162,2]
[353465317,1739859032471,-831.28,0.00010382,2]
[353465318,1739859032481,-587.0,0.0001069,2]
[353465319,1739859032491,-150.0,0.00010813,2]
[353465320,1739859032500,-500.0,0.00011461,2]
[353465321,1739859032510,-2000.0,0.00011474,2]
[353465322,1739859032519,-1000.0,0.00011759,2]
[353465323,1739859032529,-353.16165035,0.0001178,2]
[353465324,1739859032540,-250.41698298,0.0001181,2]
[353465325,1739859032549,-200.0,0.00011852,2]
[353465326,1739859032559,-274.67,0.00011899,2]
[353465327,1739859032569,-300.0,0.00011978,2]
[353465328,1739859032579,-600.0,0.00012,2]
[353465329,1739859032588,-150.0,0.00012058,2]
[353465330,1739859032600,-150.00000001,0.00012058,2]
[353465331,1739859032610,-150.0,0.00012058,2]
[353465332,1739859032620,-150.0,0.00012058,2]
[353465333,1739859032630,-163.51,0.00012101,2]
[353465334,1739859032643,-23900.0,0.00012141,2]
[353465335,1739859032652,-269.93,0.0001216,2]
[353465336,1739859032661,-150.0,0.00012252,2]
[353465337,1739859032671,-5021.57053239,0.00012255,2]
[353465338,1739859032681,-150.0,0.00012281,2]
[353465339,1739859032692,-500.0,0.00012374,2]
[353465340,1739859032701,-150.0,0.00012392,2]
[353465341,1739859032712,-1500.0,0.00012439,2]
[353465342,1739859032722,-150.0,0.00012504,2]
[353465343,1739859032731,-1174.08383398,0.00012558,2]
[353465344,1739859032741,-170.85,0.0001264,2]
[353465345,1739859032750,-831.28,0.00012646,2]
[353465346,1739859032760,-1397.75,0.00012653,2]
[353465347,1739859032770,-150.0,0.00012727,2]
[353465348,1739859032779,-150.0,0.00012727,2]
[353465349,1739859032789,-626.63,0.00012778,2]
[353465350,1739859032796,-682.84211288,0.00012877,2]
[353465352,1739859032805,-439.14,0.00012878,2]
[353465354,1739859032814,-682.84211288,0.00012932,2]
[353465356,1739859032823,-150.0,0.00012951,2]
[353465357,1739859032833,-184.20247008,0.00013,2]
[353465359,1739859032842,-3416.93,0.00013,2]
[353465361,1739859032852,-175.005,0.00013,2]
[353465363,1739859032861,-682.84211288,0.00013014,2]
[353465365,1739859032871,-420.60711233,0.0001305,2]
[353465367,1739859032880,-150.0,0.00013062,2]
[353465369,1739859032890,-682.84211288,0.00013068,2]
[353465371,1739859032899,-682.84211288,0.00013123,2]
[353465373,1739859032908,-150.0,0.00013174,2]
[353465375,1739859032918,-682.84211288,0.00013178,2]
[353465377,1739859032928,-1000.0,0.00013229,2]
[353465379,1739859032939,-682.84211288,0.0001326,2]
[353465381,1739859032948,-335.50585726,0.0001328,2]
[353465383,1739859032958,-423.52250552,0.000133,2]
[353465385,1739859032968,-682.84211288,0.00013315,2]
[353465387,1739859032977,-205.997,0.00013328,2]
[353465389,1739859032986,-272.417,0.00013328,2]
[353465391,1739859032995,-154.94,0.00013328,2]
[353465394,1739859033005,-170.564,0.00013328,2]
[353465395,1739859033015,-2026.0,0.00013328,2]
[353465397,1739859033025,-1276.097,0.00013328,2]
[353465399,1739859033034,-641.369,0.00013328,2]
[353465402,1739859033045,-569.0,0.00013328,2]
[353465403,1739859033055,-1786.0,0.00013328,2]
[353465405,1739859033066,-1273.001,0.00013328,2]
[353465407,1739859033076,-786.0,0.00013328,2]
[353465409,1739859033086,-912.222,0.00013328,2]
[353465411,1739859033096,-2970.477,0.00013328,2]
[353465413,1739859033106,-4054.397,0.00013328,2]
[353465415,1739859033116,-541.559,0.00013328,2]
[353465416,1739859033129,-1008.0,0.00013328,2]
[353465418,1739859033140,-3917.0,0.00013328,2]
[353465420,1739859033149,-284.385,0.00013328,2]
[353465422,1739859033160,-682.84211288,0.0001337,2]
[353465424,1739859033169,-503.01161047,0.00013373,2]
[353465426,1739859033179,-290.27854222,0.00013373,2]
[353465428,1739859033190,-412821.45853612,0.0001338,2]
[353465430,1739859033201,-3056.51112025,0.0001338,2]
[353465432,1739859033211,-274.67,0.00013386,2]
[353465434,1739859033221,-205.91417906,0.0001339,2]
[353465436,1739859033231,-205.91417906,0.0001339,2]
[353465438,1739859033241,-204.3522332,0.00013397,2]
[353465440,1739859033251,-150.0,0.00013397,2]
[353465442,1739859033260,-500.0,0.00013399,2]
[353465444,1739859033270,-233.05726404,0.00013399,2]
[353465446,1739859033280,-500.0,0.00013399,2]
[353465448,1739859033290,-500.0,0.00013399,2]
[353465450,1739859033301,-609.54940249,0.00013399,2]
[353465453,1739859033312,-500.0,0.00013399,2]
[353465455,1739859033321,-500.0,0.00013399,2]
[353465456,1739859033332,-271.49745016,0.00013399,2]
[353465458,1739859033342,-500.0,0.00013399,2]
[353465460,1739859033352,-102584.2530618,0.000134,3]
[353465462,1739859033362,-189.33763446,0.000134,3]
[353465464,1739859033373,-827127.63446906,0.000134,5]
[353465469,1739859033410,-25935.91555181,0.000134,5]
[353465471,1739859033421,-1499.60126055,0.000134,5]
[353465483,1739859033534,-290.09543646,0.000134,5]
[353465486,1739859033551,-1290.0,0.000134,5]
[353465488,1739859033564,-2683.30000003,0.000134,5]
[353465492,1739859033589,-423.30030765,0.000134,5]
[353465514,1739859038274,-1100.814,0.00013328,2]
[353465515,1739859038285,-516.03726655,0.000134,2]
[353465516,1739859038295,-8074.03688263,0.000134,3]
[353465517,1739859038307,-418.44257471,0.000134,3]
[353465518,1739859038319,-434.90073813,0.000134,3]
[353465519,1739859038330,-854.26511851,0.000134,3]
[353465520,1739859038341,-390.0,0.000134,3]
[353465521,1739859038388,-1356.678,0.000134,3]
[353465522,1739859038399,-9114.7,0.000134,3]
[353465523,1739859038411,-268.06419491,0.000134,3]
[353465524,1739859038422,-30059.56939588,0.000134,3]
[353465525,1739859038595,-321.46962613,0.000134,3]
[353465526,1739859038606,-867.20949215,0.000134,5]
[353465527,1739859038618,-510.0,0.000134,5]
[353465528,1739859038631,-2151.0577244,0.000134,5]
[353465530,1739859038644,-769.22313,0.000134,5]
[353465718,1739859040380,-283064.25884855,0.000134,5]
[353465720,1739859040391,-2111.42776427,0.000134,5]
[353465729,1739859040494,-12136.48527984,0.000134,5]
[353465730,1739859040506,-251.37865955,0.000134,5]
[353465759,1739859042189,-857.74999997,0.000134,5]
[353465760,1739859042211,-291.49900002,0.000134,5]
[353465761,1739859042223,-449.75009952,0.000134,5]
[353465762,1739859042236,-397.15422141,0.000134,5]
[353465763,1739859042248,-339.86169624,0.000134,5]
[353465764,1739859042330,-430.088,0.000134,5]
[353465765,1739859042342,-284.152,0.000134,5]
[353465766,1739859042501,-3380517.47493925,0.000134,5]
[353465863,1739859043453,-503.03136977,0.000134,5]
[353465866,1739859043465,-1080.68123411,0.000134,5]
[353465888,1739859043671,-6432.51010887,0.000134,5]
[353465890,1739859043683,-86500.0,0.000134,5]
[353465892,1739859043698,-260000.0,0.000134,5]
[353465895,1739859043710,-549.0000006,0.000134,5]
[353465970,1739859046267,-252.3806,8.836e-05,2]
[353465971,1739859046276,-5904.69478811,0.000134,5]
[353465973,1739859046293,-300.0,0.000134,5]
[353465982,1739859046402,-445.99100061,0.000134,5]
[353465983,1739859046413,-324.43,0.000134,5]
[353465984,1739859046424,-297210.42755699,0.000134,5]
[353465985,1739859046507,-1337.41956801,0.000134,5]
[353465986,1739859046518,-603.1499999,0.000134,5]
[353465987,1739859046529,-644.67499044,0.000134,5]
[353465988,1739859046540,-850.0,0.000134,5]
[353466008,1739859046781,-328.77686946,0.000134,5]
[353466010,1739859046796,-800.48200015,0.000134,5]
[353466013,1739859046814,-375.88955218,0.000134,5]
[353466100,1739860231503,-600.0,9.7e-05,3]
[353466101,1739860231513,-1200.0,9.8e-05,3]
[353466102,1739860231522,-284.09225182,9.9e-05,3]
[353466103,1739860231534,-1515.90774818,9.9e-05,3]
[353466104,1739860231543,-300.0,9.999e-05,2]
[353466105,1739860231552,-150.0,9.999e-05,2]
[353466106,1739860231561,-629.33250557,9.999e-05,2]
[353466107,1739860231571,-842.35916383,0.0001,2]
[353466108,1739860231582,-3777.19374894,0.0001,2]
[353466109,1739860231593,-6702.90292869,0.0001,2]
[353466110,1739860231605,-7933.01844227,0.0001,2]
[353466111,1739860231616,-762.17542217,0.0001,2]
[353466112,1739860231627,-518.29895496,0.0001,2]
[353466113,1739860231638,-2665.99999999,0.0001,2]
[353466114,1739860231649,-592.36206145,0.0001,2]
[353466115,1739860231661,-639.900128,0.0001,2]
[353466116,1739860231673,-8109.04658966,0.0001,2]
[353466117,1739860231684,-256.10064574,0.0001,2]
[353466118,1739860231702,-10848.66366975,0.0001,2]
[353466119,1739860231714,-2681.53569738,0.0001,2]
[353466120,1739860231725,-393.75164639,0.0001,2]
[353466121,1739860231794,-641.8161166,0.0001,2]
[353466122,1739860231815,-42538.61446327,0.0001,2]
[353466123,1739860231841,-327817.84863663,0.0001,2]
[353466141,1739860237416,-334.47,0.0001,2]
[353466142,1739860237454,-273.42535054,0.0001,2]
[353466143,1739860237466,-1574.8254369,0.0001,2]
[353466144,1739860237477,-1196.71796321,0.0001,2]
[353466145,1739860237488,-457.11191113,0.0001,2]
[353466146,1739860237549,-2642008.23753214,0.0001,2]
[353466147,1739860237559,-82844.10427245,0.0001,2]
[353466148,1739860237568,-2400.0,0.0001,3]
[353466149,1739860237577,-35159.86785538,0.0001,2]
[353466150,1739860237586,-655.56187264,0.0001,2]
[353466151,1739860237596,-155.07,0.00010137,2]
[353466152,1739860237605,-829.46,0.0001038,2]
[353466153,1739860237614,-165.9977102,0.000109,2]
[353466154,1739860237623,-420.0,0.00010999,2]
[353466155,1739860237633,-870.48,0.00011754,2]
[353466156,1739860237642,-1368.22,0.00011793,2]
[353466157,1739860237651,-3393.17,0.00011808,2]
[353466158,1739860237661,-1177.96,0.00011828,2]
[353466159,1739860237671,-1000.0,0.00011947,2]
[353466160,1739860237681,-200.0,0.00012013,2]
[353466161,1739860237691,-6733.78,0.0001205,2]
[353466162,1739860237700,-150.0,0.00012058,2]
[353466163,1739860237709,-150.0,0.00012058,2]
[353466164,1739860237719,-150.0,0.00012058,2]
[353466165,1739860237728,-150.0,0.00012058,2]
[353466166,1739860237737,-23900.0,0.00012089,2]
[353466167,1739860237747,-150.0,0.00012206,2]
[353466168,1739860237756,-1500.0,0.00012223,2]
[353466169,1739860237765,-1673.81,0.00012263,2]
[353466170,1739860237775,-150.0,0.00012355,2]
[353466172,1739860237784,-150.0,0.00012392,2]
[353466174,1739860237793,-150.0,0.00012504,2]
[353466176,1739860237803,-280.42,0.00012509,2]
[353466177,1739860237812,-250.0,0.00012552,2]
[353466179,1739860237821,-1907.1,0.00012596,2]
[353466181,1739860237831,-829.46,0.00012644,2]
[353466182,1739860237840,-150.0,0.00012653,2]
[353466183,1739860237849,-3000.0,0.000127,4]
[353466184,1739860237858,-150.0,0.00012726,2]
[353466185,1739860237868,-200.0,0.00012726,2]
[353466186,1739860237877,-150.0,0.00012727,2]
[353466187,1739860237886,-150.0,0.00012727,2]
[353466188,1739860237895,-2661.35,0.00012792,2]
[353466189,1739860237905,-600.0,0.000128,4]
[353466190,1739860237915,-150.0,0.00012802,2]
[353466191,1739860237924,-600.0,0.000129,4]
[353466192,1739860237933,-150.0,0.00012951,2]
[353466193,1739860237943,-150.0,0.00013062,2]
[353466194,1739860237959,-150.0,0.000131,2]
[353466195,1739860237968,-150.0,0.0001311,2]
[353466196,1739860237978,-200.0,0.0001311,2]
[353466197,1739860237988,-150.0,0.00013248,2]
[353466198,1739860237998,-569.0,0.00013298,2]
[353466199,1739860238007,-638.0,0.00013298,2]
[353466200,1739860238017,-908.0,0.00013298,2]
[353466201,1739860238027,-783.0,0.00013298,2]
[353466202,1739860238036,-1265.0,0.00013298,2]
[353466203,1739860238047,-852.888,0.00013298,2]
[353466204,1739860238056,-3450.382,0.00013298,2]
[353466205,1739860238065,-150.0,0.00013298,2]
[353466206,1739860238075,-1290.0,0.000133,2]
[353466207,1739860238084,-199.9292799,0.000133,2]
[353466208,1739860238095,-768.03980402,0.000133,2]
[353466209,1739860238104,-200.33643053,0.00013333,2]
[353466210,1739860238114,-500.5143979,0.00013373,2]
[353466211,1739860238123,-166.58630794,0.00013373,2]
[353466212,1739860238133,-2939.013,0.00013373,2]
[353466213,1739860238142,-175.005,0.00013373,2]
[353466214,1739860238152,-382.43561082,0.00013376,2]
[353466215,1739860238164,-150.0,0.00013397,2]
[353466216,1739860238173,-150.00000001,0.00013397,2]
[353466217,1739860238183,-150.0,0.00013397,2]
[353466218,1739860238192,-1000.0,0.00013399,2]
[353466219,1739860238201,-1000.0,0.00013399,2]
[353466220,1739860238211,-1000.0,0.00013399,2]
[353466221,1739860238220,-462.25516803,0.00013399,2]
[353466222,1739860238229,-500.0,0.00013399,2]
[353466223,1739860238239,-258.01863327,0.000134,2]
[353466224,1739860238249,-1442181.13431618,0.000134,5]
[353466225,1739860238261,-599.79444174,0.000134,5]
[353466226,1739860238273,-519.07829482,0.000134,5]
[353466227,1739860238284,-290.811,0.000134,5]
[353466228,1739860238350,-4677.82886025,0.000134,5]
[353466229,1739860238361,-434.90073268,0.000134,5]
[353466230,1739860238378,-623.20604957,0.000134,5]
[353466238,1739860239733,-151.0,0.00013298,2]
[353466239,1739860239744,-3003.7297208,0.000134,5]
[353466240,1739860239756,-1069.10426147,0.000134,5]
[353466241,1739860239788,-1858.46356661,0.000134,5]
[353466242,1739860239995,-25646.06326546,0.000134,3]
[353466243,1739860240006,-3030.10261454,0.000134,5]
[353466282,1739860242581,-341.37380162,0.000134,5]
[353466283,1739860242592,-500.0,0.000134,5]
[353466284,1739860242735,-338.08775016,0.000134,5]
[353466337,1739860245476,-450.54589589,0.000134,5]
[353466339,1739860245495,-546.006,0.000134,5]
[353466348,1739860245584,-74580.94020018,0.000134,5]
[353466349,1739860245595,-601.6529264,0.000134,5]
[353466350,1739860245676,-349.21308669,0.00013298,2]
[353466351,1739860245767,-658.78691331,0.00013298,2]
[353466352,1739860245777,-2571.19500053,0.000134,5]
[353466415,1739860688252,223.03,8.817e-05,2]
[353466416,1739861151117,1000.0,0.0002,120]
[353466439,1739861431630,-200.0,8.835e-05,2]
[353466440,1739861431639,-5781.54832817,8.836e-05,2]
[353466441,1739861431660,-744.5572046,8.836e-05,2]
[353466442,1739861431671,-743.93422967,8.836e-05,2]
[353466443,1739861431682,-492.56648881,8.836e-05,2]
[353466444,1739861431693,-676.4067955,8.836e-05,2]
[353466445,1739861431705,-996.04733761,8.836e-05,2]
[353466446,1739861431800,-4087.51139424,8.836e-05,2]
[353466447,1739861431817,-1062.34977108,8.836e-05,2]
[353466448,1739861431828,-402.92919909,8.836e-05,2]
[353466449,1739861431839,-988.3344858,8.836e-05,2]
[353466450,1739861431851,-534.5368763,8.836e-05,2]
[353466451,1739861431874,-449.32685517,8.836e-05,2]
[353466452,1739861431885,-299.99,8.836e-05,2]
[353466453,1739861431907,-998.84210492,8.836e-05,2]
[353466454,1739861431938,-875.69492904,8.836e-05,2]
[353466455,1739861431948,-1087.08573811,8.836e-05,2]
[353466456,1739861431959,-352.1959996,8.836e-05,2]
[353466457,1739861431970,-614.9899999,8.836e-05,2]
[353466458,1739861431982,-3907.80336239,8.836e-05,2]
[353466459,1739861431991,-200.0,9.719e-05,2]
[353466460,1739861432001,-1000.0,9.999e-05,2]
[353466461,1739861432010,-398.48658805,9.999e-05,2]
[353466462,1739861432038,-601.51341195,9.999e-05,2]
[353466463,1739861432047,-1000.0,9.999e-05,2]
[353466464,1739861432056,-462.25516803,9.999e-05,2]
[353466465,1739861432066,-150.0,0.0001,2]
[353466466,1739861432075,-550.0,0.0001,2]
[353466467,1739861432084,-265.02,0.00010137,2]
[353466468,1739861432093,-785.71,0.00010197,2]
[353466469,1739861432103,-150.0,0.00010999,2]
[353466470,1739861432112,-150.0,0.00010999,2]
[353466471,1739861432122,-11.43642002,0.00010999,2]
[353466472,1739861432153,-188.56357998,0.00010999,2]
[353466473,1739861432162,-1506.60441004,0.00011652,2]
[353466474,1739861432173,-1059.21558996,0.00011652,2]
[353466475,1739861432182,-250.0,0.0001169,2]
[353466476,1739861432191,-750.68510915,0.00011717,2]
[353466485,1739861437618,-119.79489085,0.00011717,2]
[353466486,1739861437628,-1673.81,0.00011837,2]
[353466487,1739861437638,-500.0,0.00011902,2]
[353466488,1739861437647,-600.0,0.00012,2]
[353466489,1739861437657,-150.0,0.00012058,2]
[353466490,1739861437667,-150.0,0.00012058,2]
[353466491,1739861437677,-150.0,0.00012058,2]
[353466492,1739861437687,-1000.0,0.00012065,2]
[353466493,1739861437696,-150.0,0.00012225,2]
[353466494,1739861437706,-150.0,0.00012392,2]
[353466495,1739861437715,-500.0,0.000124,4]
[353466496,1739861437725,-2000.0,0.00012425,2]
[353466497,1739861437735,-1156.39510915,0.00012435,2]
[353466498,1739861437747,-343.60489085,0.00012435,2]
[353466499,1739861437756,-785.71,0.00012461,2]
[353466500,1739861437766,-1000.0,0.000125,4]
[353466501,1739861437776,-150.0,0.00012504,2]
[353466502,1739861437786,-150.0,0.0001256,2]
[353466503,1739861437796,-621.79,0.00012572,2]
[353466504,1739861437806,-1500.0,0.000126,4]
[353466505,1739861437815,-2000.0,0.000127,4]
[353466506,1739861437825,-150.0,0.00012727,2]
[353466507,1739861437835,-1177.60893051,0.000128,4]
[353466508,1739861437867,-1322.39106949,0.000128,4]
[353466509,1739861437876,-150.0,0.00012895,2]
[353466510,1739861437885,-500.0,0.000129,4]
[353466511,1739861437895,-150.0,0.00012951,2]
[353466512,1739861437904,-150.0,0.00013062,2]
[353466513,1739861437914,-246.8210098,0.00013131,2]
[353466515,1739861437923,-150.0,0.0001323,2]
[353466517,1739861437933,-852.888,0.00013269,2]
[353466519,1739861437943,-638.0,0.00013269,2]
[353466521,1739861437952,-569.0,0.00013269,2]
[353466523,1739861437961,-783.0,0.00013269,2]
[353466525,1739861437970,-1265.0,0.00013269,2]
[353466527,1739861437979,-908.0,0.00013269,2]
[353466529,1739861437988,-3450.382,0.00013269,2]
[353466531,1739861437997,-150.0,0.00013269,2]
[353466533,1739861438007,-150.0,0.00013269,2]
[353466535,1739861438016,-4000.0,0.0001327,2]
[353466537,1739861438025,-165.9977102,0.00013297,2]
[353466539,1739861438034,-199.9292799,0.000133,2]
[353466541,1739861438044,-381.84219462,0.00013304,2]
[353466542,1739861438053,-500.5143979,0.00013373,2]
[353466545,1739861438063,-93925.055923,0.00013397,14]
[353466547,1739861438074,-311.184893,0.00013397,14]
[353466550,1739861438092,-330.0,0.00013397,14]
[353466552,1739861438104,-9894.99203209,0.00013397,14]
[353466554,1739861438115,-2104.32603578,0.00013397,14]
[353466556,1739861438125,-7768.0,0.00013397,14]
[353466560,1739861438155,-86014.7001001,0.00013397,14]
[353466641,1739861439819,-722.876572,0.00013397,14]
[353466642,1739861439831,-1111.23132226,0.00013397,14]
[353466643,1739861439842,-1469.6911387,0.00013397,14]